[Event "FIDE World Junior U20-ch Girls 2025"]
[Site "Petrovac"]
[Date "2025.02.25"]
[Round "1.42"]
[White "Kaloki, Zuri"]
[Black "Cornileau, Juliette"]
[Result "0-1"]
[Annotator "ChessBase"]
[ECO "B22"]
[WhiteElo "1784"]
[BlackElo "2144"]
[PlyCount "102"]
[EventDate "2025.02.23"]
[EventType "swiss"]
[EventCountry "MNE"]
[SourceTitle "playchess.com"]
[Source "ChessBase"]
[SourceQuality "1"]
[TimeControl "40/5400+30:1800+30"]

1. e4 {[%emt 0:00:05]} c5 {[%emt 0:00:03]} 2. c3 {[%emt 0:00:14]} d5 {[%emt 0:01:40]} 3. exd5 {[%emt 0:00:10]} Qxd5 {[%emt 0:00:06]} 4. d4 {[%emt 0:00:06]} Nf6 {[%emt 0:00:50]} 5. Nf3 {[%emt 0:00:07]} Bg4 {[%emt 0:00:50]} 6. Be2 {[%emt 0:01:24]} e6 {[%emt 0:02:45]} 7. Na3 {[%emt 0:02:21]} cxd4 {[%emt 0:18:05]} 8. Nb5 {[%emt 0:03:41]} Na6 {[%emt 0:00:09]} 9. Qa4 {[%emt 0:02:32]} Nd7 {[%emt 0:01:47]} 10. Qxa6 {[%emt 0:02:06]} bxa6 {[%emt 0:03:52]} 11. Nc7+ {[%emt 0:00:09]} Kd8 {[%emt 0:00:03]} 12. Nxd5 {[%emt 0:00:10]} exd5 {[%emt 0:00:15]} 13. Nxd4 {[%emt 0:00:45]} Bxe2 {[%emt 0:00:18]} 14. Kxe2 {[%emt 0:00:59]} Bc5 {[%emt 0:03:15]} 15. Be3 {[%emt 0:02:27]} Re8 {[%emt 0:07:59]} 16. Kd2 {[%emt 0:00:54]} Kc7 {[%emt 0:16:00]} 17. Rhe1 {[%emt 0:05:06]} g6 {[%emt 0:04:30]} 18. f3 {[%emt 0:09:33]} Kb7 {[%emt 0:01:31]} 19. Bf4 {[%emt 0:04:45]} Rac8 {[%emt 0:10:07]} 20. Rxe8 {[%emt 0:02:30]} Rxe8 {[%emt 0:00:25]} 21. Re1 {[%emt 0:00:50]} Rxe1 {[%emt 0:00:14]} 22. Kxe1 {[%emt 0:00:10]} Bxd4 {[%emt 0:03:13]} 23. cxd4 {[%emt 0:03:20]} Nf8 {[%emt 0:01:19]} 24. Be3 {[%emt 0:18:41]} Kc6 {[%emt 0:02:21]} 25. Kd2 {[%emt 0:10:40]} Ne6 {[%emt 0:02:36]} 26. Kd3 {[%emt 0:05:37]} Nd8 {[%emt 0:03:08]} 27. Bd2 {[%emt 0:02:39]} Ne6 {[%emt 0:07:38]} 28. g3 {[%emt 0:03:36]} Kb5 {[%emt 0:01:02]} 29. b3 {[%emt 0:02:15]} Kc6 {[%emt 0:01:42]} 30. Bb4 {[%emt 0:03:42]} Kb5 {[%emt 0:00:40]} 31. Be7 {[%emt 0:00:32]} Kc6 {[%emt 0:00:53]} 32. Bf6 {[%emt 0:02:51]} Nc7 {[%emt 0:03:19]} 33. Ke3 {[%emt 0:04:30]} Kd7 {[%emt 0:02:10]} 34. Be5 {[%emt 0:01:18]} Ne6 {[%emt 0:01:41]} 35. Bb8 {[%emt 0:00:43]} Kc6 {[%emt 0:00:31]} 36. Bxa7 {[%emt 0:00:57]} Kb5 {[%emt 0:00:36]} 37. Bb8 {[%emt 0:02:13]} Kb4 {[%emt 0:00:12]} 38. Bd6+ {[%emt 0:00:05]} Kc3 {[%emt 0:00:11]} 39. b4 {[%emt 0:00:59]} Kc4 {[%emt 0:01:16]} 40. Bc5 {[%emt 0:01:19]} Kc3 {[%emt 0:00:46]} 41. a4 {[%emt 0:30:50]} Kc4 {[%emt 0:30:22]} 42. g4 {[%emt 0:02:02]} f5 {[%emt 0:00:00]} 43. gxf5 {[%emt 0:00:00]} gxf5 {[%emt 0:00:00]} 44. f4 {[%emt 0:00:00]} h6 {[%emt 0:00:00]} 45. h3 {[%emt 0:00:00]} h5 {[%emt 0:00:00]} 46. h4 {[%emt 0:00:00]} Nd8 {[%emt 0:00:00]} 47. b5 {[%emt 0:00:00]} axb5 {[%emt 0:00:00]} 48. a5 {[%emt 0:00:00]} Nc6 {[%emt 0:00:00]} 49. a6 {[%emt 0:00:00]} Kc3 {[%emt 0:00:00]} 50. Bb6 {[%emt 0:00:40]} b4 {[%emt 0:00:00]} 51. Ba5 {[%emt 0:02:46]} Nxa5 {[%emt 0:00:00]} 0-1

[Event "FIDE World Junior U20-ch Girls 2025"]
[Site "Petrovac"]
[Date "2025.02.25"]
[Round "1.43"]
[White "Tarasenka, Aliaksandra"]
[Black "Ajradinoska, Indzi"]
[Result "1-0"]
[Annotator "NA"]
[ECO "C13"]
[WhiteElo "2139"]
[BlackElo "1761"]
[PlyCount "45"]
[EventDate "2025.02.23"]
[EventType "swiss"]
[EventCountry "MNE"]
[SourceTitle "playchess.com"]
[Source "ChessBase"]
[SourceQuality "1"]
[TimeControl "40/5400+30:1800+30"]

1. e4 {[%emt 0:00:03]} e6 {[%emt 0:00:11]} 2. d4 {[%emt 0:00:09]} d5 {[%emt 0:00:05]} 3. Nc3 {[%emt 0:00:07]} Nf6 {[%emt 0:00:21]} 4. Bg5 {[%emt 0:00:12]} Be7 {[%emt 0:01:28]} 5. e5 {[%emt 0:00:08]} Nfd7 {[%emt 0:00:18]} 6. h4 {[%emt 0:00:16]} a6 {[%emt 0:00:49]} 7. Qg4 {[%emt 0:07:11]} g6 {[%emt 0:08:41]} 8. Nf3 {[%emt 0:21:16]} c5 {[%emt 0:05:01]} 9. dxc5 {[%emt 0:02:03]} Nc6 {[%emt 0:09:12]} 10. Qf4 {[%emt 0:06:55]} Nxc5 {[%emt 0:07:52]} 11. O-O-O {[%emt 0:13:57]} Qc7 {[%emt 0:11:56]} 12. h5 {[%emt 0:15:26]} Bxg5 {[%emt 0:17:05]} 13. Nxg5 {[%emt 0:12:10]} d4 {[%emt 0:02:53]} 14. Rxd4 {[%emt 0:07:20]} Nxd4 {[%emt 0:03:55]} 15. Qxd4 {[%emt 0:00:17]} Qe7 {[%emt 0:02:16]} 16. f4 {[%emt 0:04:55]} Bd7 {[%emt 0:02:44]} 17. b4 {[%emt 0:01:39]} Na4 {[%emt 0:03:17]} 18. Nce4 {[%emt 0:00:21]} Kf8 {[%emt 0:13:49]} 19. Nd6 {[%emt 0:01:55]} Be8 {[%emt 0:01:26]} 20. Bc4 {[%emt 0:02:48]} Rd8 {[%emt 0:01:21]} 21. hxg6 {[%emt 0:00:29]} Bb5 {[%emt 0:04:16]} 22. Qd3 {[%emt 0:01:17]} Rxd6 {[%emt 0:02:25]} 23. g7+ {[%emt 0:00:20]} 1-0

[Event "FIDE World Junior U20-ch Girls 2025"]
[Site "Petrovac"]
[Date "2025.02.25"]
[Round "1.44"]
[White "Saraci, Rinesa"]
[Black "Valcu, Lavinia"]
[Result "0-1"]
[Annotator "NA"]
[ECO "B90"]
[WhiteElo "1751"]
[BlackElo "2137"]
[PlyCount "82"]
[EventDate "2025.02.23"]
[EventType "swiss"]
[EventCountry "MNE"]
[SourceTitle "playchess.com"]
[Source "ChessBase"]
[SourceQuality "1"]
[TimeControl "40/5400+30:1800+30"]

1. e4 {[%emt 0:00:05]} c5 {[%emt 0:00:07]} 2. Nf3 {[%emt 0:00:20]} d6 {[%emt 0:00:06]} 3. d4 {[%emt 0:00:27]} cxd4 {[%emt 0:00:06]} 4. Nxd4 {[%emt 0:00:07]} Nf6 {[%emt 0:00:05]} 5. Nc3 {[%emt 0:00:18]} a6 {[%emt 0:00:04]} 6. Be3 {[%emt 0:01:01]} e5 {[%emt 0:00:07]} 7. Nf3 {[%emt 0:02:31]} Be7 {[%emt 0:00:15]} 8. Be2 {[%emt 0:02:54]} O-O {[%emt 0:01:45]} 9. O-O {[%emt 0:02:32]} Nbd7 {[%emt 0:05:37]} 10. h3 {[%emt 0:09:02]} b5 {[%emt 0:02:03]} 11. a3 {[%emt 0:03:33]} Bb7 {[%emt 0:00:34]} 12. Nd2 {[%emt 0:05:27]} Rc8 {[%emt 0:01:39]} 13. Kh1 {[%emt 0:05:37]} Qc7 {[%emt 0:09:37]} 14. Rc1 {[%emt 0:05:12]} Qb8 {[%emt 0:04:43]} 15. Bf3 {[%emt 0:07:11]} Qa8 {[%emt 0:01:42]} 16. Qe2 {[%emt 0:07:15]} h6 {[%emt 0:12:02]} 17. h4 {[%emt 0:07:58]} Nc5 {[%emt 0:12:05]} 18. Bxc5 {[%emt 0:02:39]} Rxc5 {[%emt 0:00:09]} 19. Nb3 {[%emt 0:03:45]} Rxc3 {[%emt 0:06:53]} 20. bxc3 {[%emt 0:00:52]} Nxe4 {[%emt 0:03:52]} 21. Bxe4 {[%emt 0:04:40]} Bxe4 {[%emt 0:00:05]} 22. f3 {[%emt 0:00:20]} Bd5 {[%emt 0:05:53]} 23. Qf2 {[%emt 0:03:47]} Qd8 {[%emt 0:01:42]} 24. g3 {[%emt 0:06:58]} f5 {[%emt 0:05:28]} 25. Rcd1 {[%emt 0:05:41]} Qa8 {[%emt 0:00:25]} 26. Kh2 {[%emt 0:02:05]} f4 {[%emt 0:03:42]} 27. Rd2 {[%emt 0:07:24]} fxg3+ {[%emt 0:01:47]} 28. Qxg3 {[%emt 0:00:40]} Rf4 {[%emt 0:00:24]} 29. Rg2 {[%emt 0:02:02]} Qf8 {[%emt 0:03:14]} 30. Nd2 {[%emt 0:00:46]} Bd8 {[%emt 0:04:50]} 31. Qf2 {[%emt 0:02:11]} Bxh4 {[%emt 0:04:42]} 32. Qa7 {[%emt 0:00:16]} Bg5 {[%emt 0:00:43]} 33. Rxg5 {[%emt 0:00:46]} hxg5 {[%emt 0:00:20]} 34. Kg2 {[%emt 0:00:35]} g4 {[%emt 0:01:07]} 35. Qe3 {[%emt 0:00:26]} gxf3+ {[%emt 0:00:27]} 36. Kf2 {[%emt 0:00:26]} Qf6 {[%emt 0:01:00]} 37. Rh1 {[%emt 0:00:31]} Rh4 {[%emt 0:00:49]} 38. Rg1 {[%emt 0:00:30]} Rh2+ {[%emt 0:00:15]} 39. Kf1 {[%emt 0:00:19]} f2 {[%emt 0:00:18]} 40. Rg3 {[%emt 0:00:31]} Rh1+ {[%emt 0:00:15]} 41. Ke2 {[%emt 0:30:44]} f1=Q+ {[%emt 0:30:10]} 0-1

[Event "FIDE World Junior U20-ch Girls 2025"]
[Site "Petrovac"]
[Date "2025.02.25"]
[Round "1.45"]
[White "Peglau, Dora"]
[Black "Sele, Timea"]
[Result "1-0"]
[Annotator "ChessBase"]
[ECO "D12"]
[WhiteElo "2134"]
[BlackElo "1678"]
[PlyCount "99"]
[EventDate "2025.02.23"]
[EventType "swiss"]
[EventCountry "MNE"]
[SourceTitle "playchess.com"]
[Source "ChessBase"]
[SourceQuality "1"]
[TimeControl "40/5400+30:1800+30"]

1. Nf3 {[%emt 0:00:04]} d5 {[%emt 0:00:07]} 2. c4 {[%emt 0:00:20]} c6 {[%emt 0:06:38]} 3. e3 {[%emt 0:01:23]} Nf6 {[%emt 0:01:28]} 4. d4 {[%emt 0:01:22]} Bf5 {[%emt 0:04:46]} 5. Nc3 {[%emt 0:01:52]} e6 {[%emt 0:01:02]} 6. Be2 {[%emt 0:01:26]} dxc4 {[%emt 0:06:13]} 7. Bxc4 {[%emt 0:00:06]} Nbd7 {[%emt 0:00:10]} 8. O-O {[%emt 0:00:31]} Be7 {[%emt 0:00:00]} 9. Re1 {[%emt 0:00:59]} O-O {[%emt 0:01:39]} 10. h3 {[%emt 0:04:10]} Nb6 {[%emt 0:03:02]} 11. Bb3 {[%emt 0:04:44]} h6 {[%emt 0:00:58]} 12. e4 {[%emt 0:02:17]} Bh7 {[%emt 0:02:24]} 13. Bf4 {[%emt 0:02:44]} Rc8 {[%emt 0:03:46]} 14. a4 {[%emt 0:07:54]} a5 {[%emt 0:05:21]} 15. Qe2 {[%emt 0:07:13]} Bb4 {[%emt 0:06:01]} 16. Bc2 {[%emt 0:06:56]} Re8 {[%emt 0:11:41]} 17. Red1 {[%emt 0:05:16]} Qe7 {[%emt 0:07:21]} 18. Na2 {[%emt 0:08:04]} c5 {[%emt 0:09:05]} 19. Nxb4 {[%emt 0:02:52]} cxb4 {[%emt 0:02:03]} 20. Bd3 {[%emt 0:03:01]} Red8 {[%emt 0:02:53]} 21. Rac1 {[%emt 0:09:34]} Bg6 {[%emt 0:06:12]} 22. Ne5 {[%emt 0:06:03]} Bh7 {[%emt 0:05:10]} 23. f3 {[%emt 0:04:38]} Nbd7 {[%emt 0:04:53]} 24. Nc4 {[%emt 0:01:41]} b6 {[%emt 0:02:10]} 25. Nd6 {[%emt 0:04:31]} Rxc1 {[%emt 0:00:50]} 26. Rxc1 {[%emt 0:00:03]} e5 {[%emt 0:00:15]} 27. Nc8 {[%emt 0:06:22]} Qe8 {[%emt 0:03:08]} 28. dxe5 {[%emt 0:02:51]} Nxe5 {[%emt 0:01:28]} 29. Ba6 {[%emt 0:01:53]} Kh8 {[%emt 0:01:00]} 30. Nxb6 {[%emt 0:00:52]} Ned7 {[%emt 0:03:03]} 31. Bb5 {[%emt 0:00:57]} Qe7 {[%emt 0:00:24]} 32. Nxd7 {[%emt 0:01:17]} Nxd7 {[%emt 0:00:19]} 33. Rc7 {[%emt 0:00:23]} Qf6 {[%emt 0:00:37]} 34. Be3 {[%emt 0:02:11]} Ne5 {[%emt 0:00:47]} 35. Qc2 {[%emt 0:00:48]} Qd6 {[%emt 0:00:32]} 36. Rc8 {[%emt 0:00:34]} Rxc8 {[%emt 0:00:29]} 37. Qxc8+ {[%emt 0:00:31]} Bg8 {[%emt 0:00:07]} 38. Be2 {[%emt 0:00:22]} Kh7 {[%emt 0:00:47]} 39. Qc5 {[%emt 0:00:36]} Qxc5 {[%emt 0:00:37]} 40. Bxc5 {[%emt 0:00:07]} f6 {[%emt 0:00:10]} 41. Bb6 {[%emt 0:01:50]} Nc4 {[%emt 0:02:52]} 42. Bxc4 {[%emt 0:01:40]} Bxc4 {[%emt 0:00:06]} 43. Bxa5 {[%emt 0:00:05]} Bb3 {[%emt 0:00:06]} 44. Bxb4 {[%emt 0:00:06]} Bxa4 {[%emt 0:00:03]} 45. Kf2 {[%emt 0:00:56]} Kg8 {[%emt 0:01:45]} 46. Ke3 {[%emt 0:00:36]} Kf7 {[%emt 0:00:10]} 47. Kd4 {[%emt 0:00:31]} Ke6 {[%emt 0:00:19]} 48. Bf8 {[%emt 0:00:53]} Kf7 {[%emt 0:00:10]} 49. Bd6 {[%emt 0:00:09]} Ke6 {[%emt 0:01:01]} 50. Kc5 {[%emt 0:00:57]} 1-0

[Event "FIDE World Junior U20-ch Girls 2025"]
[Site "Petrovac"]
[Date "2025.02.25"]
[Round "1.46"]
[White "Balent, Sara"]
[Black "Ter-Avetisjana, Agnesa Stepania"]
[Result "0-1"]
[Annotator "ChessBase"]
[ECO "D11"]
[WhiteElo "1653"]
[BlackElo "2133"]
[PlyCount "98"]
[EventDate "2025.02.23"]
[EventType "swiss"]
[EventCountry "MNE"]
[SourceTitle "playchess.com"]
[Source "ChessBase"]
[SourceQuality "1"]
[TimeControl "40/5400+30:1800+30"]

1. d4 {[%emt 0:00:02]} d5 {[%emt 0:00:12]} 2. c4 {[%emt 0:00:08]} c6 {[%emt 0:00:09]} 3. Nf3 {[%emt 0:00:09]} Nf6 {[%emt 0:00:06]} 4. g3 {[%emt 0:00:11]} g6 {[%emt 0:05:55]} 5. Bg2 {[%emt 0:00:45]} Bg7 {[%emt 0:00:07]} 6. Nc3 {[%emt 0:01:11]} O-O {[%emt 0:01:43]} 7. O-O {[%emt 0:00:09]} Ne4 {[%emt 0:03:53]} 8. Ne5 {[%emt 0:08:26]} f6 {[%emt 0:07:04]} 9. Nf3 {[%emt 0:02:24]} Nxc3 {[%emt 0:05:29]} 10. bxc3 {[%emt 0:00:13]} dxc4 {[%emt 0:04:31]} 11. Nd2 {[%emt 0:03:04]} Be6 {[%emt 0:03:06]} 12. e4 {[%emt 0:02:13]} Qa5 {[%emt 0:09:04]} 13. Qc2 {[%emt 0:05:04]} Nd7 {[%emt 0:03:09]} 14. a4 {[%emt 0:07:21]} Nb6 {[%emt 0:03:09]} 15. Ba3 {[%emt 0:07:12]} Qxa4 {[%emt 0:06:13]} 16. Qxa4 {[%emt 0:00:57]} Nxa4 {[%emt 0:00:08]} 17. Bxe7 {[%emt 0:00:11]} Nxc3 {[%emt 0:16:03]} 18. Bxf8 {[%emt 0:04:47]} Bxf8 {[%emt 0:01:00]} 19. Kh1 {[%emt 0:10:16]} a5 {[%emt 0:04:03]} 20. d5 {[%emt 0:02:00]} cxd5 {[%emt 0:06:18]} 21. exd5 {[%emt 0:00:12]} Nxd5 {[%emt 0:02:57]} 22. Nxc4 {[%emt 0:01:28]} a4 {[%emt 0:02:25]} 23. Na3 {[%emt 0:04:40]} Bc5 {[%emt 0:03:05]} 24. Rfd1 {[%emt 0:05:04]} Nc3 {[%emt 0:06:14]} 25. Rd3 {[%emt 0:04:26]} Bb4 {[%emt 0:03:36]} 26. Bxb7 {[%emt 0:04:46]} Rb8 {[%emt 0:00:01]} 27. Bf3 {[%emt 0:04:12]} Bb3 {[%emt 0:03:28]} 28. Nb1 {[%emt 0:10:14]} Nxb1 {[%emt 0:00:15]} 29. Rxb3 {[%emt 0:02:56]} axb3 {[%emt 0:00:02]} 30. Rxb1 {[%emt 0:00:14]} Bc5 {[%emt 0:00:13]} 31. Bd5+ {[%emt 0:00:24]} Kg7 {[%emt 0:00:14]} 32. Rxb3 {[%emt 0:00:23]} Rd8 {[%emt 0:00:12]} 33. Rd3 {[%emt 0:04:16]} Bxf2 {[%emt 0:00:09]} 34. Kg2 {[%emt 0:01:11]} Bc5 {[%emt 0:00:37]} 35. Bc4 {[%emt 0:00:24]} Rb8 {[%emt 0:01:50]} 36. Rd7+ {[%emt 0:02:08]} Kh6 {[%emt 0:00:08]} 37. Rd2 {[%emt 0:00:12]} Rb1 {[%emt 0:00:57]} 38. Bf1 {[%emt 0:00:48]} f5 {[%emt 0:00:28]} 39. Rc2 {[%emt 0:01:19]} Bb6 {[%emt 0:00:03]} 40. Rd2 {[%emt 0:01:33]} Rc1 {[%emt 0:00:46]} 41. Rb2 {[%emt 0:30:34]} Bc5 {[%emt 0:30:04]} 42. Ra2 {[%emt 0:00:28]} g5 {[%emt 0:01:29]} 43. Ra6+ {[%emt 0:01:07]} Kg7 {[%emt 0:00:50]} 44. Ra2 {[%emt 0:01:25]} g4 {[%emt 0:00:00]} 45. Rb2 {[%emt 0:00:00]} Kg6 {[%emt 0:00:00]} 46. Ra2 {[%emt 0:00:00]} Kg5 {[%emt 0:00:00]} 47. Rb2 {[%emt 0:00:00]} h5 {[%emt 0:00:00]} 48. Rd2 {[%emt 0:00:00]} h4 {[%emt 0:00:00]} 49. gxh4+ {[%emt 0:00:00]} Kxh4 {[%emt 0:00:00]} 0-1

[Event "FIDE World Junior U20-ch Girls 2025"]
[Site "Petrovac"]
[Date "2025.02.26"]
[Round "2.1"]
[White "Gaal, Zsoka"]
[Black "Kirtadze, Anastasia"]
[Result "1/2-1/2"]
[Annotator "ChessBase"]
[ECO "E46"]
[WhiteElo "2404"]
[BlackElo "2218"]
[PlyCount "97"]
[EventDate "2025.02.23"]
[EventType "swiss"]
[EventCountry "MNE"]
[SourceTitle "playchess.com"]
[Source "ChessBase"]
[SourceQuality "1"]
[TimeControl "40/5400+30:1800+30"]

1. d4 {[%emt 0:00:10]} Nf6 {[%emt 0:00:28]} 2. c4 {[%emt 0:00:11]} e6 {[%emt 0:00:28]} 3. Nc3 {[%emt 0:00:12]} Bb4 {[%emt 0:00:29]} 4. e3 {[%emt 0:00:14]} O-O {[%emt 0:01:09]} 5. Nge2 {[%emt 0:00:25]} b6 {[%emt 0:12:49]} 6. a3 {[%emt 0:01:17]} Bxc3+ {[%emt 0:04:01]} 7. Nxc3 {[%emt 0:00:12]} d6 {[%emt 0:01:27]} 8. Bd3 {[%emt 0:11:51]} e5 {[%emt 0:09:01]} 9. O-O {[%emt 0:08:06]} Qe7 {[%emt 0:03:58]} 10. Qf3 {[%emt 0:06:24]} c6 {[%emt 0:00:55]} 11. d5 {[%emt 0:04:22]} c5 {[%emt 0:10:05]} 12. e4 {[%emt 0:01:51]} Ne8 {[%emt 0:02:23]} 13. Qg3 {[%emt 0:03:06]} Nd7 {[%emt 0:04:25]} 14. Nd1 {[%emt 0:06:20]} Kh8 {[%emt 0:02:06]} 15. Bg5 {[%emt 0:02:50]} f6 {[%emt 0:00:51]} 16. Bd2 {[%emt 0:00:09]} g6 {[%emt 0:00:56]} 17. f4 {[%emt 0:04:15]} exf4 {[%emt 0:02:58]} 18. Rxf4 {[%emt 0:03:25]} Ne5 {[%emt 0:03:22]} 19. Be2 {[%emt 0:00:53]} Ng7 {[%emt 0:00:48]} 20. Ne3 {[%emt 0:02:41]} Bd7 {[%emt 0:01:48]} 21. Bc3 {[%emt 0:01:24]} Rf7 {[%emt 0:01:11]} 22. Raf1 {[%emt 0:01:02]} Raf8 {[%emt 0:01:05]} 23. h4 {[%emt 0:00:25]} Bc8 {[%emt 0:05:39]} 24. b4 {[%emt 0:01:23]} Ba6 {[%emt 0:04:09]} 25. Qh2 {[%emt 0:04:43]} Bc8 {[%emt 0:03:09]} 26. g4 {[%emt 0:03:31]} h5 {[%emt 0:03:20]} 27. gxh5 {[%emt 0:05:49]} Nxh5 {[%emt 0:02:14]} 28. R4f2 {[%emt 0:02:51]} Bd7 {[%emt 0:02:08]} 29. Rg2 {[%emt 0:03:42]} Rg7 {[%emt 0:02:07]} 30. Rff2 {[%emt 0:03:16]} Rfg8 {[%emt 0:03:59]} 31. Bxh5 {[%emt 0:01:54]} gxh5 {[%emt 0:00:43]} 32. Qf4 {[%emt 0:00:07]} Rxg2+ {[%emt 0:00:47]} 33. Nxg2 {[%emt 0:02:06]} Rg6 {[%emt 0:01:43]} 34. bxc5 {[%emt 0:04:35]} bxc5 {[%emt 0:02:05]} 35. Kh1 {[%emt 0:00:21]} Kg7 {[%emt 0:04:01]} 36. Bxe5 {[%emt 0:04:47]} fxe5 {[%emt 0:00:12]} 37. Qf3 {[%emt 0:00:25]} Bg4 {[%emt 0:01:30]} 38. Qe3 {[%emt 0:01:59]} Qd7 {[%emt 0:01:11]} 39. Kh2 {[%emt 0:00:46]} Bd1 {[%emt 0:02:47]} 40. Rf1 {[%emt 0:03:28]} Bg4 {[%emt 0:01:22]} 41. Qf2 {[%emt 0:31:13]} Qe7 {[%emt 0:30:34]} 42. Ne3 {[%emt 0:00:38]} Kg8 {[%emt 0:00:00]} 43. Nf5 {[%emt 0:00:00]} Qd8 {[%emt 0:00:00]} 44. Ne3 {[%emt 0:00:00]} Qe7 {[%emt 0:00:00]} 45. Rb1 {[%emt 0:00:00]} Rf6 {[%emt 0:00:00]} 46. Rb8+ {[%emt 0:00:00]} Kh7 {[%emt 0:00:00]} 47. Nf5 {[%emt 0:00:00]} Qf7 {[%emt 0:00:00]} 48. Qb2 {[%emt 0:00:00]} Bxf5 {[%emt 0:00:00]} 49. exf5 {[%emt 0:00:00]} 1/2-1/2

[Event "FIDE World Junior U20-ch Girls 2025"]
[Site "Petrovac"]
[Date "2025.02.26"]
[Round "2.2"]
[White "Rakshitta Ravi"]
[Black "Yakimova, Mariya"]
[Result "1/2-1/2"]
[Annotator "ChessBase"]
[ECO "A13"]
[WhiteElo "2365"]
[BlackElo "2201"]
[PlyCount "92"]
[EventDate "2025.02.23"]
[EventType "swiss"]
[EventCountry "MNE"]
[SourceTitle "playchess.com"]
[Source "ChessBase"]
[SourceQuality "1"]
[TimeControl "40/5400+30:1800+30"]

1. Nf3 {[%emt 0:03:42]} Nf6 {[%emt 0:00:07]} 2. b3 {[%emt 0:00:09]} d5 {[%emt 0:03:52]} 3. Bb2 {[%emt 0:00:13]} c5 {[%emt 0:02:15]} 4. e3 {[%emt 0:00:27]} e6 {[%emt 0:04:17]} 5. c4 {[%emt 0:00:55]} Nc6 {[%emt 0:00:20]} 6. cxd5 {[%emt 0:03:54]} exd5 {[%emt 0:00:19]} 7. Be2 {[%emt 0:01:44]} a6 {[%emt 0:16:03]} 8. O-O {[%emt 0:06:30]} d4 {[%emt 0:02:50]} 9. d3 {[%emt 0:08:39]} Bd6 {[%emt 0:08:07]} 10. Na3 {[%emt 0:04:46]} dxe3 {[%emt 0:06:24]} 11. fxe3 {[%emt 0:00:07]} O-O {[%emt 0:00:05]} 12. Nc2 {[%emt 0:24:18]} Ng4 {[%emt 0:07:47]} 13. Qd2 {[%emt 0:11:25]} Qe7 {[%emt 0:14:29]} 14. Rae1 {[%emt 0:13:00]} Be6 {[%emt 0:05:53]} 15. d4 {[%emt 0:03:08]} Rad8 {[%emt 0:02:27]} 16. Bd3 {[%emt 0:00:09]} Bb8 {[%emt 0:09:15]} 17. Qc3 {[%emt 0:02:18]} f6 {[%emt 0:00:50]} 18. Bc4 {[%emt 0:03:50]} Bxc4 {[%emt 0:01:44]} 19. Qxc4+ {[%emt 0:00:14]} Kh8 {[%emt 0:00:04]} 20. Qxc5 {[%emt 0:01:27]} Qe4 {[%emt 0:02:11]} 21. h3 {[%emt 0:02:06]} Ne7 {[%emt 0:03:45]} 22. hxg4 {[%emt 0:07:46]} Rc8 {[%emt 0:00:09]} 23. Qh5 {[%emt 0:00:21]} Rxc2 {[%emt 0:00:54]} 24. Ba3 {[%emt 0:00:15]} Rfc8 {[%emt 0:01:41]} 25. Bxe7 {[%emt 0:01:02]} Qxe7 {[%emt 0:00:02]} 26. e4 {[%emt 0:00:31]} Bg3 {[%emt 0:00:55]} 27. Re3 {[%emt 0:00:26]} Bf4 {[%emt 0:00:35]} 28. Ree1 {[%emt 0:00:05]} Bg3 {[%emt 0:05:54]} 29. Re3 {[%emt 0:00:18]} Qc7 {[%emt 0:00:46]} 30. Nh4 {[%emt 0:01:12]} Bxh4 {[%emt 0:00:24]} 31. Qxh4 {[%emt 0:00:02]} Rxa2 {[%emt 0:00:44]} 32. Rh3 {[%emt 0:00:47]} h6 {[%emt 0:00:07]} 33. g5 {[%emt 0:00:41]} Qc2 {[%emt 0:01:06]} 34. Qg3 {[%emt 0:00:29]} Rc3 {[%emt 0:00:32]} 35. Rf3 {[%emt 0:00:30]} Rxf3 {[%emt 0:00:28]} 36. Qxf3 {[%emt 0:00:03]} Qc1+ {[%emt 0:00:24]} 37. Kh2 {[%emt 0:00:31]} Qxg5 {[%emt 0:00:04]} 38. Rg3 {[%emt 0:00:26]} Qh4+ {[%emt 0:00:06]} 39. Rh3 {[%emt 0:00:04]} Qg5 {[%emt 0:00:05]} 40. Rg3 {[%emt 0:00:04]} Qh4+ {[%emt 0:01:43]} 41. Rh3 {[%emt 0:30:02]} Qf2 {[%emt 0:05:44]} 42. Qg4 {[%emt 0:00:00]} Ra1 {[%emt 0:07:34]} 43. Rxh6+ {[%emt 0:00:00]} gxh6 {[%emt 0:03:58]} 44. Qc8+ {[%emt 0:00:00]} Kg7 {[%emt 0:00:57]} 45. Qd7+ {[%emt 0:00:00]} Kg6 {[%emt 0:01:05]} 46. Qg4+ {[%emt 0:00:00]} Kf7 {[%emt 0:00:46]} 1/2-1/2

[Event "FIDE World Junior U20-ch Girls 2025"]
[Site "Petrovac"]
[Date "2025.02.26"]
[Round "2.3"]
[White "Orian, Noga"]
[Black "Shukhman, Anna"]
[Result "0-1"]
[Annotator "ChessBase"]
[ECO "D90"]
[WhiteElo "2210"]
[BlackElo "2365"]
[PlyCount "72"]
[EventDate "2025.02.23"]
[EventType "swiss"]
[EventCountry "MNE"]
[SourceTitle "playchess.com"]
[Source "ChessBase"]
[SourceQuality "1"]
[TimeControl "40/5400+30:1800+30"]

1. d4 {[%emt 0:01:35]} Nf6 {[%emt 0:00:02]} 2. c4 {[%emt 0:00:07]} g6 {[%emt 0:00:03]} 3. Nc3 {[%emt 0:00:18]} d5 {[%emt 0:00:02]} 4. Nf3 {[%emt 0:00:29]} Bg7 {[%emt 0:00:06]} 5. h4 {[%emt 0:00:24]} c6 {[%emt 0:00:11]} 6. cxd5 {[%emt 0:00:23]} cxd5 {[%emt 0:00:02]} 7. Bf4 {[%emt 0:00:23]} Nc6 {[%emt 0:01:21]} 8. e3 {[%emt 0:00:48]} O-O {[%emt 0:00:07]} 9. Qb3 {[%emt 0:00:13]} Na5 {[%emt 0:00:03]} 10. Qa3 {[%emt 0:00:13]} Bf5 {[%emt 0:01:38]} 11. Ne5 {[%emt 0:00:43]} Ne4 {[%emt 0:10:55]} 12. Nxe4 {[%emt 0:09:20]} Bxe4 {[%emt 0:00:19]} 13. f3 {[%emt 0:01:26]} Bf5 {[%emt 0:00:20]} 14. b4 {[%emt 0:01:19]} Nc6 {[%emt 0:04:05]} 15. Nxc6 {[%emt 0:01:25]} bxc6 {[%emt 0:00:03]} 16. Rc1 {[%emt 0:12:06]} Qb6 {[%emt 0:04:43]} 17. Qa5 {[%emt 0:09:27]} Rfe8 {[%emt 0:05:17]} 18. Qc5 {[%emt 0:14:44]} Bf8 {[%emt 0:20:50]} 19. Kf2 {[%emt 0:19:15]} e5 {[%emt 0:06:53]} 20. Qxb6 {[%emt 0:00:06]} axb6 {[%emt 0:00:02]} 21. Bxe5 {[%emt 0:00:15]} Rxa2+ {[%emt 0:00:07]} 22. Kg3 {[%emt 0:04:27]} Bd7 {[%emt 0:07:33]} 23. b5 {[%emt 0:06:17]} c5 {[%emt 0:00:51]} 24. h5 {[%emt 0:00:02]} g5 {[%emt 0:10:44]} 25. h6 {[%emt 0:03:17]} Re6 {[%emt 0:03:15]} 26. e4 {[%emt 0:04:19]} cxd4 {[%emt 0:02:16]} 27. Rc7 {[%emt 0:04:48]} Be8 {[%emt 0:04:32]} 28. f4 {[%emt 0:00:04]} gxf4+ {[%emt 0:01:16]} 29. Bxf4 {[%emt 0:00:15]} Rg6+ {[%emt 0:05:48]} 30. Kf3 {[%emt 0:00:01]} Ra3+ {[%emt 0:00:10]} 31. Kf2 {[%emt 0:00:26]} dxe4 {[%emt 0:00:22]} 32. Bc4 {[%emt 0:00:58]} Rc3 {[%emt 0:02:30]} 33. Ra1 {[%emt 0:03:17]} Rc2+ {[%emt 0:00:55]} 34. Ke1 {[%emt 0:00:50]} Rgxg2 {[%emt 0:03:43]} 35. Ra8 {[%emt 0:00:04]} e3 {[%emt 0:01:31]} 36. Bf1 {[%emt 0:02:31]} Bb4+ {[%emt 0:00:13]} 0-1